[Event "Early-Titled-Tuesday-Blitz-May-28-2024"]
[Site "Chess.com"]
[Date "2024.05.28"]
[Round "6"]
[White "MKlose11"]
[Black "MarkusRagger"]
[Result "0-1"]
[WhiteElo "2615"]
[BlackElo "2804"]
[TimeControl "180+1"]
[EndTime "9:01:57 PDT"]
[Termination "MarkusRagger won by resignation"]

1. e4 {[%clk 0:02:56.7]} 1... e5 {[%clk 0:02:55.2]} 2. Nf3 {[%clk 0:02:56.6]}
2... Nc6 {[%clk 0:02:55.4]} 3. d4 {[%clk 0:02:56.7]} 3... exd4 {[%clk
0:02:54.9]} 4. Bc4 {[%clk 0:02:57]} 4... Bc5 {[%clk 0:02:52.5]} 5. Ng5 {[%clk
0:02:56.6]} 5... Nh6 {[%clk 0:02:52.1]} 6. Nxf7 {[%clk 0:02:57]} 6... Nxf7
{[%clk 0:02:51.4]} 7. Bxf7+ {[%clk 0:02:57.9]} 7... Kxf7 {[%clk 0:02:51.7]} 8.
Qh5+ {[%clk 0:02:58.6]} 8... g6 {[%clk 0:02:49.9]} 9. Qxc5 {[%clk 0:02:59.5]}
9... d5 {[%clk 0:02:50.1]} 10. e5 {[%clk 0:02:59.4]} 10... Be6 {[%clk
0:02:27.5]} 11. O-O {[%clk 0:02:56.6]} 11... Qe7 {[%clk 0:02:25.3]} 12. Qb5
{[%clk 0:02:52.3]} 12... a6 {[%clk 0:02:16.9]} 13. Qxb7 {[%clk 0:02:48]} 13...
Na5 {[%clk 0:02:09.7]} 14. Bg5 {[%clk 0:02:46.2]} 14... Nxb7 {[%clk 0:02:01.6]}
0-1

[Event "Early-Titled-Tuesday-Blitz-May-28-2024"]
[Site "Chess.com"]
[Date "2024.05.28"]
[Round "6"]
[White "manmanlai1"]
[Black "Chessmissile07"]
[Result "0-1"]
[WhiteElo "2566"]
[BlackElo "2833"]
[TimeControl "180+1"]
[EndTime "9:01:58 PDT"]
[Termination "Chessmissile07 won by resignation"]

1. e4 {[%clk 0:03:00.9]} 1... a6 {[%clk 0:03:00.9]} 2. Bc4 {[%clk 0:02:57.7]}
2... e6 {[%clk 0:02:59]} 3. a4 {[%clk 0:02:57.1]} 3... d5 {[%clk 0:02:57.1]} 4.
exd5 {[%clk 0:02:56.4]} 4... exd5 {[%clk 0:02:58]} 5. Bb3 {[%clk 0:02:52.5]}
5... Nf6 {[%clk 0:02:57.9]} 6. Nf3 {[%clk 0:02:52.3]} 6... Qe7+ {[%clk
0:02:55.9]} 7. Kf1 {[%clk 0:02:49.7]} 7... g6 {[%clk 0:02:50.1]} 8. d4 {[%clk
0:02:49.2]} 8... Bg7 {[%clk 0:02:50]} 9. h3 {[%clk 0:02:48.6]} 9... O-O {[%clk
0:02:49.2]} 10. Bf4 {[%clk 0:02:49]} 10... Nc6 {[%clk 0:02:45.8]} 11. c3 {[%clk
0:02:49.3]} 11... Na5 {[%clk 0:02:40.7]} 12. Bc2 {[%clk 0:02:48.9]} 12... Nc4
{[%clk 0:02:40.6]} 13. b3 {[%clk 0:02:49.1]} 13... Nd6 {[%clk 0:02:41.1]} 14.
Nbd2 {[%clk 0:02:46.8]} 14... Nde4 {[%clk 0:02:35.8]} 15. Qe2 {[%clk 0:02:45.8]}
15... Re8 {[%clk 0:02:34.3]} 16. Re1 {[%clk 0:02:46]} 16... Bf5 {[%clk
0:02:32.2]} 17. Nxe4 {[%clk 0:02:44]} 17... dxe4 {[%clk 0:02:31.6]} 18. Ne5
{[%clk 0:02:42.2]} 18... Nd5 {[%clk 0:02:31.2]} 19. Qc4 {[%clk 0:02:34.8]} 19...
Nxf4 {[%clk 0:02:30.5]} 0-1

[Event "Early-Titled-Tuesday-Blitz-May-28-2024"]
[Site "Chess.com"]
[Date "2024.05.28"]
[Round "6"]
[White "banane_verte"]
[Black "Louis-Paulsen-Fan"]
[Result "0-1"]
[WhiteElo "2491"]
[BlackElo "2317"]
[TimeControl "180+1"]
[EndTime "9:02:28 PDT"]
[Termination "Louis-Paulsen-Fan won by checkmate"]

1. e4 {[%clk 0:03:00.9]} 1... Nf6 {[%clk 0:02:51.6]} 2. Nc3 {[%clk 0:02:55.2]}
2... e5 {[%clk 0:02:51.2]} 3. Bc4 {[%clk 0:02:56]} 3... Nc6 {[%clk 0:02:51]} 4.
Nf3 {[%clk 0:02:53.7]} 4... Nxe4 {[%clk 0:02:51]} 5. Nxe4 {[%clk 0:02:52.4]}
5... d5 {[%clk 0:02:51.2]} 6. Bd3 {[%clk 0:02:53.3]} 6... dxe4 {[%clk
0:02:51.6]} 7. Bxe4 {[%clk 0:02:54.2]} 7... Bd6 {[%clk 0:02:51.9]} 8. O-O {[%clk
0:02:49.6]} 8... O-O {[%clk 0:02:51.9]} 9. d3 {[%clk 0:02:44.3]} 9... Bg4 {[%clk
0:02:48.7]} 10. Bxc6 {[%clk 0:02:43]} 10... bxc6 {[%clk 0:02:47.2]} 11. h3
{[%clk 0:02:43.9]} 11... Bh5 {[%clk 0:02:46.5]} 12. Re1 {[%clk 0:02:44.3]} 12...
Re8 {[%clk 0:02:39.3]} 13. Qe2 {[%clk 0:02:41.7]} 13... f5 {[%clk 0:02:32.7]}
14. Qe3 {[%clk 0:02:39.7]} 14... e4 {[%clk 0:02:11.9]} 15. Qg5 {[%clk
0:02:34.8]} 15... exf3 {[%clk 0:02:03.7]} 16. Qxd8 {[%clk 0:02:26.6]} 16...
Raxd8 {[%clk 0:01:59.3]} 17. Rxe8+ {[%clk 0:02:27]} 17... Rxe8 {[%clk
0:01:58.6]} 18. g4 {[%clk 0:02:27.9]} 18... Re1# {[%clk 0:01:55.7]} 0-1

[Event "Early-Titled-Tuesday-Blitz-May-28-2024"]
[Site "Chess.com"]
[Date "2024.05.28"]
[Round "6"]
[White "kleinebeer98"]
[Black "NiranjanNavalgund"]
[Result "1-0"]
[WhiteElo "2965"]
[BlackElo "2482"]
[TimeControl "180+1"]
[EndTime "9:02:51 PDT"]
[Termination "kleinebeer98 won by resignation"]

1. e4 {[%clk 0:03:00.9]} 1... e5 {[%clk 0:02:59.6]} 2. Nc3 {[%clk 0:03:01.1]}
2... Nf6 {[%clk 0:02:59.1]} 3. f4 {[%clk 0:03:01.7]} 3... d5 {[%clk 0:02:59.3]}
4. fxe5 {[%clk 0:03:02.4]} 4... Nxe4 {[%clk 0:02:59.4]} 5. Nf3 {[%clk
0:03:03.1]} 5... Nc6 {[%clk 0:02:59.2]} 6. Bb5 {[%clk 0:03:03.3]} 6... Bc5
{[%clk 0:02:51.7]} 7. d4 {[%clk 0:02:59.5]} 7... Bb6 {[%clk 0:02:51.2]} 8. O-O
{[%clk 0:02:56.8]} 8... O-O {[%clk 0:02:51.7]} 9. Bxc6 {[%clk 0:02:52.7]} 9...
bxc6 {[%clk 0:02:51.6]} 10. Be3 {[%clk 0:02:53.3]} 10... f5 {[%clk 0:02:41.8]}
11. exf6 {[%clk 0:02:43.2]} 11... Nxf6 {[%clk 0:02:40.4]} 12. Ne5 {[%clk
0:02:39.2]} 12... Qe8 {[%clk 0:02:32.6]} 13. Qd2 {[%clk 0:02:30.5]} 13... c5
{[%clk 0:02:17.2]} 14. dxc5 {[%clk 0:02:24.5]} 14... Qxe5 {[%clk 0:02:16.5]} 15.
cxb6 {[%clk 0:02:24.9]} 15... axb6 {[%clk 0:02:15.9]} 16. Bd4 {[%clk 0:02:24.7]}
16... Qd6 {[%clk 0:02:02.4]} 17. Bxf6 {[%clk 0:02:22.9]} 17... Rxf6 {[%clk
0:02:02.9]} 18. Rxf6 {[%clk 0:02:22.8]} 18... gxf6 {[%clk 0:02:03.3]} 19. Qxd5+
{[%clk 0:02:21.7]} 19... Qxd5 {[%clk 0:02:00.6]} 20. Nxd5 {[%clk 0:02:22.6]}
20... Bf5 {[%clk 0:01:56.5]} 21. Ne7+ {[%clk 0:02:22.5]} 1-0

[Event "Early-Titled-Tuesday-Blitz-May-28-2024"]
[Site "Chess.com"]
[Date "2024.05.28"]
[Round "6"]
[White "JM05C"]
[Black "BashirliSaadat"]
[Result "0-1"]
[WhiteElo "2523"]
[BlackElo "2382"]
[TimeControl "180+1"]
[EndTime "9:03:09 PDT"]
[Termination "BashirliSaadat won by resignation"]

1. e4 {[%clk 0:03:00.9]} 1... c5 {[%clk 0:02:57.7]} 2. Nf3 {[%clk 0:03:00.8]}
2... Nc6 {[%clk 0:02:58.1]} 3. d4 {[%clk 0:03:01.3]} 3... cxd4 {[%clk
0:02:58.3]} 4. Nxd4 {[%clk 0:03:02.2]} 4... g6 {[%clk 0:02:58.7]} 5. c4 {[%clk
0:03:01]} 5... Nf6 {[%clk 0:02:58.4]} 6. Nc3 {[%clk 0:03:00.6]} 6... Nxd4 {[%clk
0:02:58.8]} 7. Qxd4 {[%clk 0:02:59.6]} 7... d6 {[%clk 0:02:58.9]} 8. Be3 {[%clk
0:02:57.9]} 8... Bg7 {[%clk 0:02:59.3]} 9. f3 {[%clk 0:02:57.6]} 9... O-O {[%clk
0:02:58.9]} 10. Qd2 {[%clk 0:02:58]} 10... Be6 {[%clk 0:02:58.1]} 11. Be2 {[%clk
0:02:58]} 11... Qa5 {[%clk 0:02:56.7]} 12. Nd5 {[%clk 0:02:55.1]} 12... Qxd2+
{[%clk 0:02:52.8]} 13. Kxd2 {[%clk 0:02:56]} 13... Bxd5 {[%clk 0:02:51.1]} 14.
cxd5 {[%clk 0:02:56.9]} 14... Nd7 {[%clk 0:02:47.5]} 15. Rac1 {[%clk 0:02:49.6]}
15... Rfc8 {[%clk 0:02:45.7]} 16. b4 {[%clk 0:02:48.9]} 16... a5 {[%clk
0:02:40.8]} 17. b5 {[%clk 0:02:47.6]} 17... Bb2 {[%clk 0:02:35.4]} 18. Rxc8+
{[%clk 0:02:42]} 18... Rxc8 {[%clk 0:02:36.3]} 19. Rb1 {[%clk 0:02:41.7]} 19...
Ba3 {[%clk 0:02:34.4]} 20. Rb3 {[%clk 0:02:36.6]} 20... Bb4+ {[%clk 0:02:33.2]}
21. Kd3 {[%clk 0:02:35.7]} 21... Bc5 {[%clk 0:02:32.8]} 22. Bd2 {[%clk 0:02:34]}
22... Ne5+ {[%clk 0:02:32]} 23. Kc2 {[%clk 0:02:31.9]} 23... Bd4+ {[%clk
0:01:58.5]} 24. Kd1 {[%clk 0:02:30.6]} 24... b6 {[%clk 0:01:57.4]} 25. a4 {[%clk
0:02:29.8]} 25... Kg7 {[%clk 0:01:49.3]} 26. Rb1 {[%clk 0:02:29.6]} 26... Nc4
{[%clk 0:01:45.4]} 27. Rc1 {[%clk 0:02:27]} 27... Nb2+ {[%clk 0:01:43.8]} 28.
Ke1 {[%clk 0:02:27.6]} 28... Rxc1+ {[%clk 0:01:42.3]} 29. Bxc1 {[%clk
0:02:28.5]} 29... Nxa4 {[%clk 0:01:42.4]} 0-1

[Event "Early-Titled-Tuesday-Blitz-May-28-2024"]
[Site "Chess.com"]
[Date "2024.05.28"]
[Round "6"]
[White "AwareIdea"]
[Black "Arteler"]
[Result "1-0"]
[WhiteElo "2484"]
[BlackElo "2228"]
[TimeControl "180+1"]
[EndTime "9:03:42 PDT"]
[Termination "AwareIdea won by resignation"]

1. d4 {[%clk 0:02:58.9]} 1... Nf6 {[%clk 0:02:51.6]} 2. c4 {[%clk 0:02:58.3]}
2... g6 {[%clk 0:02:52]} 3. Nc3 {[%clk 0:02:58.1]} 3... Bg7 {[%clk 0:02:52.5]}
4. e4 {[%clk 0:02:58.3]} 4... d6 {[%clk 0:02:53.1]} 5. Nf3 {[%clk 0:02:58.9]}
5... O-O {[%clk 0:02:53.6]} 6. Be2 {[%clk 0:02:59.4]} 6... e5 {[%clk 0:02:53.6]}
7. O-O {[%clk 0:02:59.8]} 7... Nc6 {[%clk 0:02:52.5]} 8. d5 {[%clk 0:03:00]}
8... Ne7 {[%clk 0:02:53.2]} 9. b4 {[%clk 0:03:00.2]} 9... Nd7 {[%clk 0:02:49.7]}
10. a4 {[%clk 0:02:59.3]} 10... f5 {[%clk 0:02:50.1]} 11. Ba3 {[%clk 0:02:57.4]}
11... Nf6 {[%clk 0:02:50]} 12. Nd2 {[%clk 0:02:57.2]} 12... f4 {[%clk
0:02:38.1]} 13. c5 {[%clk 0:02:54.2]} 13... g5 {[%clk 0:02:38.6]} 14. Nc4 {[%clk
0:02:53.2]} 14... Ne8 {[%clk 0:02:36.2]} 15. b5 {[%clk 0:02:51.3]} 15... Ng6
{[%clk 0:02:03.2]} 16. b6 {[%clk 0:02:47.8]} 16... axb6 {[%clk 0:01:57.4]} 17.
cxd6 {[%clk 0:02:47.5]} 17... cxd6 {[%clk 0:01:48.7]} 18. Nb5 {[%clk 0:02:47.2]}
18... Rf6 {[%clk 0:01:39.2]} 19. Rc1 {[%clk 0:02:07.6]} 19... Rxa4 {[%clk
0:01:34.6]} 20. Qxa4 {[%clk 0:02:06.9]} 1-0

[Event "Early-Titled-Tuesday-Blitz-May-28-2024"]
[Site "Chess.com"]
[Date "2024.05.28"]
[Round "6"]
[White "kuchma777"]
[Black "Viktor_Poddubnyi"]
[Result "0-1"]
[WhiteElo "2490"]
[BlackElo "2316"]
[TimeControl "180+1"]
[EndTime "9:04:12 PDT"]
[Termination "Viktor_Poddubnyi won by checkmate"]

1. e4 {[%clk 0:03:00.9]} 1... g6 {[%clk 0:03:00.2]} 2. d4 {[%clk 0:03:00.8]}
2... Bg7 {[%clk 0:03:00.4]} 3. h4 {[%clk 0:03:00.2]} 3... d5 {[%clk 0:02:59.6]}
4. e5 {[%clk 0:02:59.3]} 4... c5 {[%clk 0:03:00.1]} 5. h5 {[%clk 0:02:58.7]}
5... cxd4 {[%clk 0:02:57.2]} 6. hxg6 {[%clk 0:02:58.6]} 6... hxg6 {[%clk
0:02:56]} 7. Rxh8 {[%clk 0:02:58]} 7... Bxh8 {[%clk 0:02:56.9]} 8. Nf3 {[%clk
0:02:58.4]} 8... Nc6 {[%clk 0:02:52.9]} 9. Bf4 {[%clk 0:02:53.9]} 9... Bg4
{[%clk 0:02:49.3]} 10. Nbd2 {[%clk 0:02:41.8]} 10... Nxe5 {[%clk 0:02:30.5]} 11.
Bxe5 {[%clk 0:02:41.2]} 11... Bxe5 {[%clk 0:02:29.8]} 12. Bb5+ {[%clk
0:02:41.8]} 12... Kf8 {[%clk 0:02:26.3]} 13. Qe2 {[%clk 0:02:41.4]} 13... Bg7
{[%clk 0:02:12.7]} 14. Bd3 {[%clk 0:02:41.3]} 14... e5 {[%clk 0:02:00.1]} 15.
O-O-O {[%clk 0:02:36]} 15... e4 {[%clk 0:01:58.6]} 16. Bxe4 {[%clk 0:02:36.4]}
16... dxe4 {[%clk 0:01:58.2]} 17. Nxe4 {[%clk 0:02:37.3]} 17... Qe7 {[%clk
0:01:46.4]} 18. Re1 {[%clk 0:02:30.4]} 18... Re8 {[%clk 0:01:42.6]} 19. Nfg5
{[%clk 0:02:15.3]} 19... Qxg5+ {[%clk 0:01:34.6]} 20. Nxg5 {[%clk 0:02:08.4]}
20... Rxe2 {[%clk 0:01:31]} 21. Rh1 {[%clk 0:02:08]} 21... Bh6 {[%clk
0:01:22.9]} 22. f4 {[%clk 0:02:06]} 22... Bxg5 {[%clk 0:01:20.5]} 23. fxg5
{[%clk 0:02:06.9]} 23... Rxg2 {[%clk 0:01:20.3]} 24. Kb1 {[%clk 0:02:07.2]}
24... Bf5 {[%clk 0:01:19.5]} 25. Ka1 {[%clk 0:02:07]} 25... Rxc2 {[%clk
0:01:18.3]} 26. a3 {[%clk 0:02:07.9]} 26... d3 {[%clk 0:01:17.1]} 27. Rd1 {[%clk
0:02:08.8]} 27... d2 {[%clk 0:01:15.5]} 28. Ka2 {[%clk 0:02:08.6]} 28... Bg4
{[%clk 0:01:13.9]} 29. Kb1 {[%clk 0:02:09.5]} 29... Bxd1 {[%clk 0:01:13.4]} 30.
Ka2 {[%clk 0:02:09.8]} 30... Be2 {[%clk 0:01:12]} 31. a4 {[%clk 0:02:09.6]}
31... d1=Q {[%clk 0:01:10.5]} 32. Ka3 {[%clk 0:02:10.5]} 32... Qb1 {[%clk
0:01:07]} 33. Kb4 {[%clk 0:02:11.4]} 33... Qxb2+ {[%clk 0:01:06.3]} 34. Ka5
{[%clk 0:02:12.3]} 34... Qb6# {[%clk 0:01:05.4]} 0-1

[Event "Early-Titled-Tuesday-Blitz-May-28-2024"]
[Site "Chess.com"]
[Date "2024.05.28"]
[Round "6"]
[White "lachesisQ"]
[Black "NewBornNow"]
[Result "1-0"]
[WhiteElo "3091"]
[BlackElo "2805"]
[TimeControl "180+1"]
[EndTime "9:04:16 PDT"]
[Termination "lachesisQ won by resignation"]

1. e4 {[%clk 0:03:00.9]} 1... e5 {[%clk 0:02:58.4]} 2. f4 {[%clk 0:03:00.6]}
2... d5 {[%clk 0:02:58.2]} 3. exd5 {[%clk 0:03:00.6]} 3... exf4 {[%clk
0:02:58.4]} 4. Nf3 {[%clk 0:03:00.6]} 4... Nf6 {[%clk 0:02:58.8]} 5. Bb5+ {[%clk
0:03:00.2]} 5... c6 {[%clk 0:02:57.5]} 6. dxc6 {[%clk 0:03:01.1]} 6... Nxc6
{[%clk 0:02:57.6]} 7. Nc3 {[%clk 0:03:01.5]} 7... Bd6 {[%clk 0:02:56.9]} 8. Qe2+
{[%clk 0:03:01.4]} 8... Be6 {[%clk 0:02:56.6]} 9. Nd4 {[%clk 0:03:01.4]} 9...
O-O {[%clk 0:02:56.1]} 10. Nxe6 {[%clk 0:03:01.3]} 10... fxe6 {[%clk 0:02:56.2]}
11. Bxc6 {[%clk 0:03:01.8]} 11... bxc6 {[%clk 0:02:56.3]} 12. b3 {[%clk
0:03:02.4]} 12... e5 {[%clk 0:02:40.7]} 13. Bb2 {[%clk 0:03:00.7]} 13... e4
{[%clk 0:02:40.5]} 14. O-O-O {[%clk 0:03:00.6]} 14... Re8 {[%clk 0:02:40]} 15.
Rhe1 {[%clk 0:02:59.6]} 15... Kh8 {[%clk 0:02:38.9]} 16. Qc4 {[%clk 0:02:59.6]}
16... e3 {[%clk 0:02:04.4]} 17. dxe3 {[%clk 0:02:58]} 17... fxe3 {[%clk
0:02:04.4]} 18. Qxc6 {[%clk 0:02:55.8]} 18... Re6 {[%clk 0:01:51.1]} 19. Nb5
{[%clk 0:02:38.8]} 1-0

[Event "Early-Titled-Tuesday-Blitz-May-28-2024"]
[Site "Chess.com"]
[Date "2024.05.28"]
[Round "6"]
[White "Abund"]
[Black "rhungaski"]
[Result "1-0"]
[WhiteElo "2793"]
[BlackElo "2584"]
[TimeControl "180+1"]
[EndTime "9:04:28 PDT"]
[Termination "Abund won by resignation"]

1. e4 {[%clk 0:03:00.9]} 1... e6 {[%clk 0:02:58.8]} 2. d4 {[%clk 0:03:00.6]}
2... d5 {[%clk 0:02:59]} 3. Nd2 {[%clk 0:03:01.1]} 3... h6 {[%clk 0:02:58.2]} 4.
Bd3 {[%clk 0:02:52]} 4... Nf6 {[%clk 0:02:57.1]} 5. Ngf3 {[%clk 0:02:47.1]} 5...
c5 {[%clk 0:02:56.2]} 6. exd5 {[%clk 0:02:39]} 6... exd5 {[%clk 0:02:55]} 7. O-O
{[%clk 0:02:32.8]} 7... c4 {[%clk 0:02:48.5]} 8. Re1+ {[%clk 0:02:32.7]} 8...
Be6 {[%clk 0:02:49.1]} 9. Bf5 {[%clk 0:02:25.4]} 9... Qb6 {[%clk 0:02:31.9]} 10.
c3 {[%clk 0:02:14]} 10... Be7 {[%clk 0:02:27.5]} 11. Qe2 {[%clk 0:02:04]} 11...
O-O {[%clk 0:02:13.6]} 12. Bxe6 {[%clk 0:02:04.1]} 12... fxe6 {[%clk 0:02:14.5]}
13. Qxe6+ {[%clk 0:02:04.7]} 13... Qxe6 {[%clk 0:02:14.6]} 14. Rxe6 {[%clk
0:02:05.5]} 14... Kf7 {[%clk 0:02:14.4]} 15. Re2 {[%clk 0:02:03.8]} 15... Bd6
{[%clk 0:02:12.7]} 16. Ne5+ {[%clk 0:02:00.2]} 16... Kg8 {[%clk 0:02:07.1]} 17.
Ng6 {[%clk 0:01:54.9]} 17... Rc8 {[%clk 0:02:07.1]} 18. Nf3 {[%clk 0:01:50.1]}
18... b5 {[%clk 0:02:06.2]} 19. Nfh4 {[%clk 0:01:47.7]} 19... Nc6 {[%clk
0:02:02.4]} 20. Nf5 {[%clk 0:01:47.6]} 20... Bf8 {[%clk 0:02:03]} 21. Bf4 {[%clk
0:01:39.8]} 21... b4 {[%clk 0:02:02.6]} 22. f3 {[%clk 0:01:36]} 22... a5 {[%clk
0:02:00.1]} 23. g4 {[%clk 0:01:29]} 23... a4 {[%clk 0:01:58.7]} 24. cxb4 {[%clk
0:01:23]} 24... a3 {[%clk 0:01:59.3]} 25. b5 {[%clk 0:01:17.2]} 25... Nb4 {[%clk
0:01:45.3]} 26. Nge7+ {[%clk 0:01:11.9]} 1-0

[Event "Early-Titled-Tuesday-Blitz-May-28-2024"]
[Site "Chess.com"]
[Date "2024.05.28"]
[Round "6"]
[White "Attacker_2006"]
[Black "Statham_01"]
[Result "0-1"]
[WhiteElo "2541"]
[BlackElo "2721"]
[TimeControl "180+1"]
[EndTime "9:04:28 PDT"]
[Termination "Statham_01 won by resignation"]

1. e4 {[%clk 0:03:00.9]} 1... e5 {[%clk 0:02:59.6]} 2. Bc4 {[%clk 0:02:58.3]}
2... Nf6 {[%clk 0:02:59.7]} 3. d3 {[%clk 0:02:56.8]} 3... c6 {[%clk 0:03:00]} 4.
Nf3 {[%clk 0:02:53.7]} 4... d5 {[%clk 0:03:00.4]} 5. exd5 {[%clk 0:02:53.6]}
5... cxd5 {[%clk 0:02:59.7]} 6. Bb5+ {[%clk 0:02:53.8]} 6... Bd7 {[%clk
0:02:59.9]} 7. Bxd7+ {[%clk 0:02:51.5]} 7... Nbxd7 {[%clk 0:03:00.8]} 8. O-O
{[%clk 0:02:51.6]} 8... Bd6 {[%clk 0:03:00.8]} 9. Re1 {[%clk 0:02:52.3]} 9...
O-O {[%clk 0:03:00]} 10. Nc3 {[%clk 0:02:53]} 10... h6 {[%clk 0:02:59.5]} 11.
Nb5 {[%clk 0:02:49.3]} 11... Bb8 {[%clk 0:02:58.5]} 12. c4 {[%clk 0:02:49.3]}
12... e4 {[%clk 0:02:51.9]} 13. dxe4 {[%clk 0:02:47.3]} 13... dxe4 {[%clk
0:02:51.9]} 14. Nd2 {[%clk 0:02:45.6]} 14... Ne5 {[%clk 0:02:40.6]} 15. Nc3
{[%clk 0:02:38.6]} 15... Neg4 {[%clk 0:02:15.3]} 16. h3 {[%clk 0:02:33.4]} 16...
e3 {[%clk 0:01:43]} 17. fxe3 {[%clk 0:02:28.8]} 17... Bh2+ {[%clk 0:01:36.1]}
18. Kf1 {[%clk 0:02:27.5]} 18... Qd3+ {[%clk 0:01:29.9]} 19. Qe2 {[%clk
0:02:23]} 19... Nh5 {[%clk 0:01:08.3]} 20. Nce4 {[%clk 0:02:12]} 20... f5 {[%clk
0:01:01.9]} 21. Nf6+ {[%clk 0:01:49]} 21... Rxf6 {[%clk 0:00:59.6]} 0-1

[Event "Early-Titled-Tuesday-Blitz-May-28-2024"]
[Site "Chess.com"]
[Date "2024.05.28"]
[Round "6"]
[White "HighLawView"]
[Black "dinushkipremanath"]
[Result "0-1"]
[WhiteElo "2068"]
[BlackElo "2332"]
[TimeControl "180+1"]
[EndTime "9:04:32 PDT"]
[Termination "dinushkipremanath won by checkmate"]

1. e4 {[%clk 0:03:00.9]} 1... e6 {[%clk 0:03:00.9]} 2. c4 {[%clk 0:02:59.6]}
2... d5 {[%clk 0:03:01.8]} 3. cxd5 {[%clk 0:02:56.5]} 3... exd5 {[%clk
0:03:02.7]} 4. Qb3 {[%clk 0:02:55.9]} 4... Nf6 {[%clk 0:03:02.6]} 5. e5 {[%clk
0:02:52.4]} 5... Ne4 {[%clk 0:03:01.2]} 6. Nc3 {[%clk 0:02:34.6]} 6... Nxc3
{[%clk 0:02:57.9]} 7. dxc3 {[%clk 0:02:34.4]} 7... a6 {[%clk 0:02:56.5]} 8. Bf4
{[%clk 0:02:28.6]} 8... Nc6 {[%clk 0:02:55.6]} 9. O-O-O {[%clk 0:02:27.2]} 9...
Be6 {[%clk 0:02:52]} 10. Nf3 {[%clk 0:01:57.9]} 10... Be7 {[%clk 0:02:51.3]} 11.
Nd4 {[%clk 0:01:50]} 11... Nxd4 {[%clk 0:02:49.7]} 12. Rxd4 {[%clk 0:01:37.2]}
12... c5 {[%clk 0:02:47.1]} 13. Rd1 {[%clk 0:01:34.8]} 13... b5 {[%clk
0:02:46.6]} 14. c4 {[%clk 0:01:23.7]} 14... O-O {[%clk 0:02:37.8]} 15. cxd5
{[%clk 0:01:20.9]} 15... c4 {[%clk 0:02:29.4]} 16. Qf3 {[%clk 0:01:20.1]} 16...
Bf5 {[%clk 0:02:21.6]} 17. d6 {[%clk 0:01:14]} 17... Bg5 {[%clk 0:02:16.9]} 18.
Bxg5 {[%clk 0:01:06.3]} 18... Qxg5+ {[%clk 0:02:17.8]} 19. Qe3 {[%clk
0:01:06.8]} 19... Qg6 {[%clk 0:02:15.3]} 20. f3 {[%clk 0:00:56.6]} 20... Qe6
{[%clk 0:02:13.5]} 21. g4 {[%clk 0:00:55.2]} 21... Bg6 {[%clk 0:02:12.9]} 22. h4
{[%clk 0:00:55.1]} 22... c3 {[%clk 0:02:03.4]} 23. h5 {[%clk 0:00:47.8]} 23...
Qxa2 {[%clk 0:02:00.1]} 24. bxc3 {[%clk 0:00:43.3]} 24... Qc2# {[%clk
0:01:58.9]} 0-1

[Event "Early-Titled-Tuesday-Blitz-May-28-2024"]
[Site "Chess.com"]
[Date "2024.05.28"]
[Round "6"]
[White "Squirlolz"]
[Black "ChessSwole"]
[Result "1-0"]
[WhiteElo "2547"]
[BlackElo "2695"]
[TimeControl "180+1"]
[EndTime "9:04:37 PDT"]
[Termination "Squirlolz won by checkmate"]

1. Nf3 {[%clk 0:03:00.9]} 1... Nf6 {[%clk 0:02:58.5]} 2. g3 {[%clk 0:03:00.7]}
2... c5 {[%clk 0:02:58.8]} 3. Bg2 {[%clk 0:03:01.6]} 3... g6 {[%clk 0:02:56.8]}
4. O-O {[%clk 0:03:02.5]} 4... Bg7 {[%clk 0:02:57.4]} 5. Re1 {[%clk 0:03:00.6]}
5... d6 {[%clk 0:02:55]} 6. e4 {[%clk 0:03:00.3]} 6... e5 {[%clk 0:02:54.8]} 7.
c3 {[%clk 0:02:54.4]} 7... Nc6 {[%clk 0:02:54.4]} 8. d4 {[%clk 0:02:54.2]} 8...
cxd4 {[%clk 0:02:54.1]} 9. cxd4 {[%clk 0:02:54.3]} 9... Bg4 {[%clk 0:02:54.8]}
10. d5 {[%clk 0:02:48.1]} 10... Nd4 {[%clk 0:02:54.4]} 11. Be3 {[%clk
0:02:45.5]} 11... Bxf3 {[%clk 0:02:33.5]} 12. Bxf3 {[%clk 0:02:40.7]} 12... Nd7
{[%clk 0:02:28.7]} 13. Nd2 {[%clk 0:02:36.7]} 13... O-O {[%clk 0:02:26.2]} 14.
Nc4 {[%clk 0:02:34.6]} 14... Nb6 {[%clk 0:02:24.6]} 15. Rc1 {[%clk 0:02:26.1]}
15... Rc8 {[%clk 0:02:24.3]} 16. Be2 {[%clk 0:02:08]} 16... f5 {[%clk
0:02:11.1]} 17. Bxd4 {[%clk 0:02:07.3]} 17... exd4 {[%clk 0:02:11.6]} 18. exf5
{[%clk 0:02:07.8]} 18... gxf5 {[%clk 0:02:01.2]} 19. Nxb6 {[%clk 0:01:56.8]}
19... Qxb6 {[%clk 0:02:01.8]} 20. Rxc8 {[%clk 0:01:53.2]} 20... Rxc8 {[%clk
0:02:02.7]} 21. Qd3 {[%clk 0:01:53.4]} 21... Rf8 {[%clk 0:01:50.5]} 22. Qd2
{[%clk 0:01:10.5]} 22... f4 {[%clk 0:01:46.2]} 23. Bd3 {[%clk 0:01:10.2]} 23...
Qd8 {[%clk 0:01:39.2]} 24. Re6 {[%clk 0:01:08.2]} 24... Be5 {[%clk 0:01:37.4]}
25. Qe2 {[%clk 0:01:07.7]} 25... Qg5 {[%clk 0:01:33.7]} 26. Qe4 {[%clk
0:01:07.4]} 26... Rf7 {[%clk 0:01:32.1]} 27. Re8+ {[%clk 0:01:07.4]} 27... Kg7
{[%clk 0:01:29.3]} 28. Qxh7+ {[%clk 0:01:07]} 28... Kf6 {[%clk 0:01:28.3]} 29.
Re6# {[%clk 0:01:07.3]} 1-0

[Event "Early-Titled-Tuesday-Blitz-May-28-2024"]
[Site "Chess.com"]
[Date "2024.05.28"]
[Round "6"]
[White "Dexter_Dyke"]
[Black "JiaHaoxiang"]
[Result "0-1"]
[WhiteElo "2456"]
[BlackElo "2629"]
[TimeControl "180+1"]
[EndTime "9:04:41 PDT"]
[Termination "JiaHaoxiang won by resignation"]

1. e4 {[%clk 0:02:56]} 1... c5 {[%clk 0:03:00.1]} 2. Nf3 {[%clk 0:02:55.9]} 2...
d6 {[%clk 0:03:00]} 3. d4 {[%clk 0:02:56.2]} 3... cxd4 {[%clk 0:03:00.5]} 4.
Nxd4 {[%clk 0:02:56.9]} 4... Nf6 {[%clk 0:03:01.1]} 5. f3 {[%clk 0:02:57.6]}
5... e5 {[%clk 0:02:58]} 6. Bb5+ {[%clk 0:02:57.3]} 6... Bd7 {[%clk 0:02:53.5]}
7. Bxd7+ {[%clk 0:02:55.9]} 7... Qxd7 {[%clk 0:02:51.8]} 8. Nf5 {[%clk
0:02:56.8]} 8... d5 {[%clk 0:02:51.5]} 9. Bg5 {[%clk 0:02:55.7]} 9... d4 {[%clk
0:02:50.8]} 10. Bxf6 {[%clk 0:02:54.6]} 10... gxf6 {[%clk 0:02:51]} 11. c3
{[%clk 0:02:49.3]} 11... Nc6 {[%clk 0:02:49.2]} 12. O-O {[%clk 0:02:41]} 12...
O-O-O {[%clk 0:02:48.8]} 13. Qa4 {[%clk 0:02:34.3]} 13... Kb8 {[%clk 0:02:48.5]}
14. Na3 {[%clk 0:02:32.7]} 14... dxc3 {[%clk 0:02:25.9]} 15. bxc3 {[%clk
0:02:31.3]} 15... Bxa3 {[%clk 0:02:24.2]} 16. Qxa3 {[%clk 0:02:31]} 16... Qd3
{[%clk 0:02:16.9]} 17. Rab1 {[%clk 0:02:24.1]} 17... Rd7 {[%clk 0:02:13.5]} 18.
Rb3 {[%clk 0:02:01.7]} 18... Rhd8 {[%clk 0:02:06.8]} 19. Rfb1 {[%clk 0:01:53.8]}
19... Qe2 {[%clk 0:01:51.7]} 20. Ng3 {[%clk 0:00:54]} 20... Rd1+ {[%clk
0:01:49.1]} 21. Rxd1 {[%clk 0:00:38]} 21... Rxd1+ {[%clk 0:01:47.9]} 0-1